[Event "26th Hit Open-A 2022"]
[Site "Nova Gorica"]
[Date "2022.09.15"]
[Round "1.13"]
[White "Davies, Nigel R"]
[Black "Chkhaidze, Nikoloz"]
[Result "1/2-1/2"]
[ECO "A38"]
[WhiteElo "2420"]
[BlackElo "2239"]
[Annotator "ChessBase"]
[PlyCount "84"]
[EventDate "2022.09.16"]
[EventType "swiss"]
[EventCountry "SLO"]
[SourceTitle "playchess.com"]
[Source "ChessBase"]
[SourceQuality "1"]
[TimeControl "5400+30"]

1. c4 {[%emt 0:00:12]} Nf6 {[%emt 0:00:08]} 2. Nf3 {[%emt 0:00:27]} g6 {[%emt 0:00:04]} 3. d4 {[%emt 0:00:50]} Bg7 {[%emt 0:00:02]} 4. g3 {[%emt 0:00:09]} O-O {[%emt 0:00:03]} 5. Bg2 {[%emt 0:00:07]} d6 {[%emt 0:00:03]} 6. O-O {[%emt 0:00:09]} c5 {[%emt 0:00:04]} 7. b3 {[%emt 0:00:34]} cxd4 {[%emt 0:05:56]} 8. Nxd4 {[%emt 0:00:10]} Nc6 {[%emt 0:00:03]} 9. Bb2 {[%emt 0:00:22]} Bd7 {[%emt 0:04:16]} 10. Nc3 {[%emt 0:00:35]} Rb8 {[%emt 0:02:20]} 11. Nc2 {[%emt 0:04:02]} a6 {[%emt 0:00:50]} 12. Nd5 {[%emt 0:04:25]} Nxd5 {[%emt 0:02:23]} 13. Bxg7 {[%emt 0:00:07]} Kxg7 {[%emt 0:00:20]} 14. cxd5 {[%emt 0:00:11]} Ne5 {[%emt 0:00:36]} 15. Qd4 {[%emt 0:01:55]} f6 {[%emt 0:01:27]} 16. Ne3 {[%emt 0:03:51]} Qa5 {[%emt 0:05:30]} 17. f4 {[%emt 0:04:38]} Nf7 {[%emt 0:27:51]} 18. Nc4 {[%emt 0:02:31]} Qd8 {[%emt 0:00:27]} 19. Nb6 {[%emt 0:02:08]} e5 {[%emt 0:00:20]} 20. dxe6 {[%emt 0:00:11]} Bxe6 {[%emt 0:00:01]} 21. Rad1 {[%emt 0:03:29]} Re8 {[%emt 0:00:59]} 22. e4 {[%emt 0:03:05]} Re7 {[%emt 0:18:08]} 23. Rd2 {[%emt 0:13:10]} a5 {[%emt 0:08:39]} 24. Re1 {[%emt 0:13:58]} Qc7 {[%emt 0:10:26]} 25. f5 {[%emt 0:09:23]} gxf5 {[%emt 0:00:10]} 26. exf5 {[%emt 0:00:07]} Bc8 {[%emt 0:00:27]} 27. Rxe7 {[%emt 0:13:14]} Qxe7 {[%emt 0:00:03]} 28. Qg4+ {[%emt 0:00:18]} Kh8 {[%emt 0:01:47]} 29. Qe4 {[%emt 0:02:28]} Ne5 {[%emt 0:02:17]} 30. Nc4 {[%emt 0:00:52]} Bd7 {[%emt 0:02:44]} 31. Nxa5 {[%emt 0:01:19]} b6 {[%emt 0:01:35]} 32. Nc4 {[%emt 0:00:28]} Bc6 {[%emt 0:00:13]} 33. Qe2 {[%emt 0:00:42]} Bxg2 {[%emt 0:00:18]} 34. Nxe5 {[%emt 0:00:08]} dxe5 {[%emt 0:01:18]} 35. Kxg2 {[%emt 0:00:32]} Rd8 {[%emt 0:02:54]} 36. a4 {[%emt 0:01:50]} Qb7+ {[%emt 0:00:34]} 37. Kh3 {[%emt 0:00:08]} Rxd2 {[%emt 0:01:48]} 38. Qxd2 {[%emt 0:00:07]} Kg7 {[%emt 0:00:04]} 39. b4 {[%emt 0:03:58]} Qf3 {[%emt 0:00:44]} 40. Qd7+ {[%emt 0:08:33]} Kh6 {[%emt 0:00:12]} 41. Qe6 {[%emt 0:00:17]} Qh5+ {[%emt 0:00:53]} 42. Kg2 {[%emt 0:00:07]} Qe2+ {[%emt 0:00:08]} 1/2-1/2

[Event "26th Hit Open-A 2022"]
[Site "Nova Gorica"]
[Date "2022.09.15"]
[Round "1.14"]
[White "Acimovic, Vasja"]
[Black "Royal, Shreyas"]
[Result "0-1"]
[ECO "E48"]
[WhiteElo "2237"]
[BlackElo "2412"]
[Annotator "ChessBase"]
[PlyCount "96"]
[EventDate "2022.09.16"]
[EventType "swiss"]
[EventCountry "SLO"]
[SourceTitle "playchess.com"]
[Source "ChessBase"]
[SourceQuality "1"]
[TimeControl "5400+30"]

1. d4 {[%emt 0:00:04]} Nf6 {[%emt 0:00:08]} 2. c4 {[%emt 0:00:34]} e6 {[%emt 0:00:05]} 3. Nc3 {[%emt 0:00:06]} Bb4 {[%emt 0:00:04]} 4. e3 {[%emt 0:00:07]} O-O {[%emt 0:00:15]} 5. Nge2 {[%emt 0:00:08]} Re8 {[%emt 0:00:14]} 6. a3 {[%emt 0:00:25]} Bf8 {[%emt 0:00:07]} 7. Nf4 {[%emt 0:01:06]} d5 {[%emt 0:01:58]} 8. cxd5 {[%emt 0:00:25]} exd5 {[%emt 0:00:07]} 9. Bd3 {[%emt 0:00:07]} Nc6 {[%emt 0:11:29]} 10. O-O {[%emt 0:03:33]} Ne7 {[%emt 0:00:07]} 11. Qc2 {[%emt 0:04:58]} g6 {[%emt 0:00:33]} 12. Bd2 {[%emt 0:00:26]} c6 {[%emt 0:07:02]} 13. b4 {[%emt 0:05:59]} Bh6 {[%emt 0:06:35]} 14. Nfe2 {[%emt 0:10:03]} b6 {[%emt 0:04:46]} 15. Ng3 {[%emt 0:02:47]} Bg7 {[%emt 0:00:42]} 16. Rfd1 {[%emt 0:01:13]} h5 {[%emt 0:01:01]} 17. h3 {[%emt 0:07:21]} h4 {[%emt 0:03:58]} 18. Nf1 {[%emt 0:00:18]} Bf5 {[%emt 0:00:48]} 19. Rac1 {[%emt 0:04:07]} Rc8 {[%emt 0:01:30]} 20. Nh2 {[%emt 0:05:39]} b5 {[%emt 0:03:58]} 21. Nf3 {[%emt 0:01:09]} Bxd3 {[%emt 0:00:06]} 22. Qxd3 {[%emt 0:00:04]} Nf5 {[%emt 0:00:08]} 23. Ne5 {[%emt 0:02:32]} Nd7 {[%emt 0:01:09]} 24. f4 {[%emt 0:13:07]} Nb6 {[%emt 0:08:09]} 25. a4 {[%emt 0:11:07]} a6 {[%emt 0:00:57]} 26. axb5 {[%emt 0:00:06]} axb5 {[%emt 0:00:08]} 27. e4 {[%emt 0:05:03]} dxe4 {[%emt 0:01:23]} 28. Nxe4 {[%emt 0:00:17]} Nc4 {[%emt 0:02:23]} 29. Bc3 {[%emt 0:03:38]} Qd5 {[%emt 0:00:47]} 30. Qf3 {[%emt 0:04:06]} Ra8 {[%emt 0:07:00]} 31. Nd2 {[%emt 0:03:14]} Qxf3 {[%emt 0:04:28]} 32. Ndxf3 {[%emt 0:00:15]} Bh6 {[%emt 0:00:59]} 33. Nxc4 {[%emt 0:02:25]} bxc4 {[%emt 0:00:05]} 34. Bd2 {[%emt 0:01:52]} Re2 {[%emt 0:03:23]} 35. Rxc4 {[%emt 0:03:34]} Ra2 {[%emt 0:00:05]} 36. Rxc6 {[%emt 0:01:01]} Ng3 {[%emt 0:00:10]} 37. b5 {[%emt 0:02:39]} Bxf4 {[%emt 0:00:12]} 38. b6 {[%emt 0:00:25]} Be3+ {[%emt 0:03:09]} 39. Kh2 {[%emt 0:00:02]} Bxd2 {[%emt 0:00:07]} 40. Rxd2 {[%emt 0:03:51]} Raxd2 {[%emt 0:00:13]} 41. Nxh4 {[%emt 0:00:25]} g5 {[%emt 0:05:10]} 42. b7 {[%emt 0:00:36]} Rb2 {[%emt 0:00:08]} 43. Rc8+ {[%emt 0:00:30]} Kh7 {[%emt 0:00:09]} 44. Kxg3 {[%emt 0:00:13]} Rxb7 {[%emt 0:02:28]} 45. Nf3 {[%emt 0:00:02]} Rb3 {[%emt 0:01:04]} 46. Rd8 {[%emt 0:00:59]} f5 {[%emt 0:00:35]} 47. Rd7+ {[%emt 0:00:45]} Kg6 {[%emt 0:00:53]} 48. Rd6+ {[%emt 0:00:15]} Kh5 {[%emt 0:00:15]} 0-1

[Event "26th Hit Open-A 2022"]
[Site "Nova Gorica"]
[Date "2022.09.15"]
[Round "1.15"]
[White "Holtel, Jasper"]
[Black "Garsky, Vladyslav"]
[Result "1-0"]
[ECO "E04"]
[WhiteElo "2406"]
[BlackElo "2229"]
[Annotator "ChessBase"]
[PlyCount "47"]
[EventDate "2022.09.16"]
[EventType "swiss"]
[EventCountry "SLO"]
[SourceTitle "playchess.com"]
[Source "ChessBase"]
[SourceQuality "1"]
[TimeControl "5400+30"]

1. Nf3 {[%emt 0:00:03]} Nf6 {[%emt 0:00:37]} 2. g3 {[%emt 0:03:00]} d5 {[%emt 0:01:17]} 3. Bg2 {[%emt 0:00:27]} e6 {[%emt 0:01:09]} 4. O-O {[%emt 0:00:09]} c5 {[%emt 0:02:27]} 5. d4 {[%emt 0:01:34]} Nc6 {[%emt 0:01:12]} 6. c4 {[%emt 0:00:13]} dxc4 {[%emt 0:02:43]} 7. Ne5 {[%emt 0:03:00]} Nxe5 {[%emt 0:03:07]} 8. dxe5 {[%emt 0:00:14]} Qxd1 {[%emt 0:01:30]} 9. Rxd1 {[%emt 0:01:38]} Nd7 {[%emt 0:00:29]} 10. Na3 {[%emt 0:02:11]} Rb8 {[%emt 0:09:20]} 11. Nxc4 {[%emt 0:02:52]} b5 {[%emt 0:02:44]} 12. Na5 {[%emt 0:05:38]} Be7 {[%emt 0:11:52]} 13. Nc6 {[%emt 0:07:25]} Rb6 {[%emt 0:00:37]} 14. Nxa7 {[%emt 0:00:51]} Bb7 {[%emt 0:00:31]} 15. Bxb7 {[%emt 0:04:54]} Rxb7 {[%emt 0:00:08]} 16. Nc6 {[%emt 0:00:16]} Bf8 {[%emt 0:00:07]} 17. a4 {[%emt 0:01:31]} b4 {[%emt 0:01:09]} 18. a5 {[%emt 0:03:19]} Rc7 {[%emt 0:05:26]} 19. a6 {[%emt 0:00:45]} Rc8 {[%emt 0:03:38]} 20. a7 {[%emt 0:00:33]} Nb6 {[%emt 0:00:08]} 21. Ra5 {[%emt 0:04:06]} Rxc6 {[%emt 0:03:52]} 22. a8=Q+ {[%emt 0:00:32]} Nxa8 {[%emt 0:00:03]} 23. Rxa8+ {[%emt 0:00:13]} Ke7 {[%emt 0:00:02]} 24. Bg5+ {[%emt 0:02:04]} 1-0

[Event "26th Hit Open-A 2022"]
[Site "Nova Gorica"]
[Date "2022.09.15"]
[Round "1.16"]
[White "Zubova, Mariya"]
[Black "Schreiner, Peter"]
[Result "1/2-1/2"]
[ECO "C79"]
[WhiteElo "2214"]
[BlackElo "2405"]
[Annotator "ChessBase"]
[PlyCount "104"]
[EventDate "2022.09.16"]
[EventType "swiss"]
[EventCountry "SLO"]
[SourceTitle "playchess.com"]
[Source "ChessBase"]
[SourceQuality "1"]
[TimeControl "5400+30"]

1. e4 {[%emt 0:00:03]} e5 {[%emt 0:00:13]} 2. Nf3 {[%emt 0:00:08]} Nc6 {[%emt 0:00:05]} 3. Bb5 {[%emt 0:00:06]} a6 {[%emt 0:00:38]} 4. Ba4 {[%emt 0:00:04]} d6 {[%emt 0:00:46]} 5. c3 {[%emt 0:00:48]} Nf6 {[%emt 0:03:39]} 6. O-O {[%emt 0:01:00]} Bd7 {[%emt 0:01:09]} 7. d4 {[%emt 0:01:20]} g6 {[%emt 0:01:10]} 8. Re1 {[%emt 0:03:00]} Bg7 {[%emt 0:07:01]} 9. Bxc6 {[%emt 0:07:15]} Bxc6 {[%emt 0:01:00]} 10. dxe5 {[%emt 0:00:07]} Nxe4 {[%emt 0:02:41]} 11. Qc2 {[%emt 0:08:43]} d5 {[%emt 0:12:45]} 12. Nbd2 {[%emt 0:11:52]} Nc5 {[%emt 0:09:50]} 13. Nd4 {[%emt 0:03:02]} Ne6 {[%emt 0:15:54]} 14. Nxe6 {[%emt 0:03:49]} fxe6 {[%emt 0:00:07]} 15. Nf3 {[%emt 0:00:04]} O-O {[%emt 0:04:38]} 16. Bg5 {[%emt 0:02:20]} Qd7 {[%emt 0:03:04]} 17. Rad1 {[%emt 0:03:42]} Rf5 {[%emt 0:08:12]} 18. Rd4 {[%emt 0:03:22]} Raf8 {[%emt 0:01:10]} 19. Qd2 {[%emt 0:01:36]} Qf7 {[%emt 0:03:05]} 20. Bh6 {[%emt 0:03:41]} Bxh6 {[%emt 0:03:47]} 21. Qxh6 {[%emt 0:04:04]} Bd7 {[%emt 0:00:15]} 22. Re2 {[%emt 0:07:03]} c5 {[%emt 0:02:07]} 23. Rh4 {[%emt 0:00:50]} Bb5 {[%emt 0:07:11]} 24. Rd2 {[%emt 0:00:13]} Qg7 {[%emt 0:01:48]} 25. Qxg7+ {[%emt 0:10:21]} Kxg7 {[%emt 0:00:02]} 26. a4 {[%emt 0:02:28]} Bc6 {[%emt 0:00:38]} 27. a5 {[%emt 0:01:43]} Rf4 {[%emt 0:02:13]} 28. Rxf4 {[%emt 0:03:59]} Rxf4 {[%emt 0:00:02]} 29. b3 {[%emt 0:00:27]} h6 {[%emt 0:02:21]} 30. Kf1 {[%emt 0:01:23]} g5 {[%emt 0:01:41]} 31. h3 {[%emt 0:00:18]} Kg6 {[%emt 0:01:53]} 32. Ke1 {[%emt 0:07:15]} d4 {[%emt 0:00:27]} 33. cxd4 {[%emt 0:01:00]} Bxf3 {[%emt 0:00:07]} 34. gxf3 {[%emt 0:00:09]} Rxd4 {[%emt 0:00:12]} 35. Rc2 {[%emt 0:03:14]} Rd5 {[%emt 0:00:38]} 36. Rc4 {[%emt 0:00:33]} Kf5 {[%emt 0:00:59]} 37. Ke2 {[%emt 0:01:24]} Kxe5 {[%emt 0:00:15]} 38. Ke3 {[%emt 0:00:11]} Kf5 {[%emt 0:00:53]} 39. Ke2 {[%emt 0:02:51]} Ke5 {[%emt 0:01:57]} 40. Ke3 {[%emt 0:00:04]} Kd6 {[%emt 0:00:06]} 41. f4 {[%emt 0:00:56]} gxf4+ {[%emt 0:01:50]} 42. Rxf4 {[%emt 0:00:05]} Re5+ {[%emt 0:01:04]} 43. Kd3 {[%emt 0:01:10]} Rf5 {[%emt 0:00:17]} 44. Rh4 {[%emt 0:00:21]} h5 {[%emt 0:01:20]} 45. Ke3 {[%emt 0:00:13]} c4 {[%emt 0:01:07]} 46. b4 {[%emt 0:00:34]} c3 {[%emt 0:00:18]} 47. Rc4 {[%emt 0:00:21]} Rb5 {[%emt 0:00:36]} 48. Kd3 {[%emt 0:00:11]} c2 {[%emt 0:00:40]} 49. Kxc2 {[%emt 0:00:22]} Rf5 {[%emt 0:00:12]} 50. f4 {[%emt 0:00:34]} Rf8 {[%emt 0:00:28]} 51. h4 {[%emt 0:03:13]} Rg8 {[%emt 0:00:26]} 52. Rc5 {[%emt 0:00:10]} Rg4 {[%emt 0:00:37]} 1/2-1/2

[Event "26th Hit Open-A 2022"]
[Site "Nova Gorica"]
[Date "2022.09.15"]
[Round "1.17"]
[White "Fercec, Nenad"]
[Black "Bauer, Thomas"]
[Result "1/2-1/2"]
[ECO "B53"]
[WhiteElo "2403"]
[BlackElo "2200"]
[Annotator "ChessBase"]
[PlyCount "70"]
[EventDate "2022.09.16"]
[EventType "swiss"]
[EventCountry "SLO"]
[SourceTitle "playchess.com"]
[Source "ChessBase"]
[SourceQuality "1"]
[TimeControl "5400+30"]

1. e4 {[%emt 0:00:09]} c5 {[%emt 0:00:02]} 2. Nf3 {[%emt 0:00:07]} d6 {[%emt 0:00:08]} 3. d4 {[%emt 0:00:08]} cxd4 {[%emt 0:00:08]} 4. Qxd4 {[%emt 0:00:06]} h6 {[%emt 0:01:23]} 5. Be2 {[%emt 0:00:22]} Nc6 {[%emt 0:02:59]} 6. Qe3 {[%emt 0:00:08]} g6 {[%emt 0:02:21]} 7. O-O {[%emt 0:00:15]} Bg7 {[%emt 0:00:02]} 8. c4 {[%emt 0:00:40]} Nf6 {[%emt 0:00:28]} 9. Nc3 {[%emt 0:00:27]} O-O {[%emt 0:00:03]} 10. Rb1 {[%emt 0:02:37]} Bg4 {[%emt 0:03:05]} 11. b3 {[%emt 0:01:05]} Re8 {[%emt 0:05:36]} 12. Bb2 {[%emt 0:00:24]} e6 {[%emt 0:04:01]} 13. Rfd1 {[%emt 0:00:29]} Bxf3 {[%emt 0:08:58]} 14. Bxf3 {[%emt 0:00:28]} d5 {[%emt 0:04:12]} 15. cxd5 {[%emt 0:10:14]} exd5 {[%emt 0:01:43]} 16. Nxd5 {[%emt 0:00:07]} Ne5 {[%emt 0:15:24]} 17. Be2 {[%emt 0:10:59]} g5 {[%emt 0:10:24]} 18. Bb5 {[%emt 0:10:08]} Re6 {[%emt 0:00:12]} 19. Nxf6+ {[%emt 0:04:30]} Qxf6 {[%emt 0:00:07]} 20. Bd7 {[%emt 0:00:28]} Rd6 {[%emt 0:05:49]} 21. Rxd6 {[%emt 0:00:20]} Qxd6 {[%emt 0:00:02]} 22. Bf5 {[%emt 0:00:09]} Rd8 {[%emt 0:01:00]} 23. h4 {[%emt 0:02:13]} gxh4 {[%emt 0:03:37]} 24. Qxa7 {[%emt 0:12:56]} Qd3 {[%emt 0:03:54]} 25. Rf1 {[%emt 0:02:32]} Qe2 {[%emt 0:07:25]} 26. Bc3 {[%emt 0:10:44]} Nc6 {[%emt 0:11:21]} 27. Qxb7 {[%emt 0:03:10]} Rd1 {[%emt 0:06:03]} 28. Qc8+ {[%emt 0:00:38]} Bf8 {[%emt 0:02:16]} 29. Rxd1 {[%emt 0:00:49]} Qxd1+ {[%emt 0:00:01]} 30. Kh2 {[%emt 0:00:09]} Qd6+ {[%emt 0:00:37]} 31. e5 {[%emt 0:00:18]} Qc5 {[%emt 0:01:04]} 32. Be4 {[%emt 0:04:16]} Qxc3 {[%emt 0:00:26]} 33. Bxc6 {[%emt 0:00:18]} Qxe5+ {[%emt 0:00:16]} 34. Kh3 {[%emt 0:00:19]} h5 {[%emt 0:01:05]} 35. Bf3 {[%emt 0:01:06]} Kg7 {[%emt 0:00:14]} 1/2-1/2

[Event "26th Hit Open-A 2022"]
[Site "Nova Gorica"]
[Date "2022.09.15"]
[Round "1.18"]
[White "Saypuri Srithan"]
[Black "Willow, Jonah B"]
[Result "0-1"]
[ECO "B42"]
[WhiteElo "2199"]
[BlackElo "2385"]
[Annotator "ChessBase"]
[PlyCount "74"]
[EventDate "2022.09.16"]
[EventType "swiss"]
[EventCountry "SLO"]
[SourceTitle "playchess.com"]
[Source "ChessBase"]
[SourceQuality "1"]
[TimeControl "5400+30"]

1. e4 {[%emt 0:00:26]} c5 {[%emt 0:00:19]} 2. Nf3 {[%emt 0:00:06]} e6 {[%emt 0:01:01]} 3. d4 {[%emt 0:00:09]} cxd4 {[%emt 0:00:05]} 4. Nxd4 {[%emt 0:00:06]} a6 {[%emt 0:00:32]} 5. Bd3 {[%emt 0:00:07]} Nf6 {[%emt 0:00:33]} 6. Qe2 {[%emt 0:01:16]} d6 {[%emt 0:01:59]} 7. O-O {[%emt 0:00:32]} Be7 {[%emt 0:01:36]} 8. c4 {[%emt 0:03:34]} O-O {[%emt 0:00:50]} 9. Nc3 {[%emt 0:00:25]} b6 {[%emt 0:04:48]} 10. f4 {[%emt 0:05:29]} e5 {[%emt 0:08:54]} 11. Nf5 {[%emt 0:05:30]} Bxf5 {[%emt 0:01:30]} 12. exf5 {[%emt 0:00:09]} Nc6 {[%emt 0:01:05]} 13. Nd5 {[%emt 0:25:37]} Re8 {[%emt 0:07:53]} 14. fxe5 {[%emt 0:10:43]} dxe5 {[%emt 0:01:11]} 15. Nxf6+ {[%emt 0:08:03]} Bxf6 {[%emt 0:00:16]} 16. Be4 {[%emt 0:00:18]} Nd4 {[%emt 0:06:47]} 17. Qd3 {[%emt 0:02:43]} Ra7 {[%emt 0:02:01]} 18. Be3 {[%emt 0:06:50]} Rd7 {[%emt 0:01:01]} 19. Bd5 {[%emt 0:02:14]} b5 {[%emt 0:07:29]} 20. Bxd4 {[%emt 0:08:48]} exd4 {[%emt 0:01:52]} 21. b3 {[%emt 0:06:28]} Re3 {[%emt 0:06:17]} 22. Qd2 {[%emt 0:00:24]} Rde7 {[%emt 0:01:17]} 23. Rf3 {[%emt 0:05:08]} Bg5 {[%emt 0:11:41]} 24. f6 {[%emt 0:03:24]} Rxf3 {[%emt 0:05:55]} 25. fxe7 {[%emt 0:02:25]} Qxe7 {[%emt 0:00:06]} 26. Qd1 {[%emt 0:00:32]} Re3 {[%emt 0:01:56]} 27. g3 {[%emt 0:00:51]} d3 {[%emt 0:00:56]} 28. Qg4 {[%emt 0:00:15]} g6 {[%emt 0:04:53]} 29. Rf1 {[%emt 0:00:35]} Bf6 {[%emt 0:00:29]} 30. Qf4 {[%emt 0:01:36]} d2 {[%emt 0:00:36]} 31. Bf3 {[%emt 0:00:06]} Bg5 {[%emt 0:01:22]} 32. Qg4 {[%emt 0:00:26]} Re1 {[%emt 0:00:41]} 33. Bd1 {[%emt 0:00:20]} h5 {[%emt 0:05:33]} 34. Qf3 {[%emt 0:00:23]} h4 {[%emt 0:01:04]} 35. Kg2 {[%emt 0:01:05]} Qe6 {[%emt 0:01:07]} 36. Qg4 {[%emt 0:00:42]} h3+ {[%emt 0:00:15]} 37. Kf2 {[%emt 0:00:30]} Qe3# {[%emt 0:00:05]} 0-1

[Event "26th Hit Open-A 2022"]
[Site "Nova Gorica"]
[Date "2022.09.15"]
[Round "1.19"]
[White "Nyysti, Sampsa"]
[Black "Gschiel, Alexander"]
[Result "0-1"]
[ECO "B12"]
[WhiteElo "2363"]
[BlackElo "2196"]
[Annotator "ChessBase"]
[PlyCount "114"]
[EventDate "2022.09.16"]
[EventType "swiss"]
[EventCountry "SLO"]
[SourceTitle "playchess.com"]
[Source "ChessBase"]
[SourceQuality "1"]
[TimeControl "5400+30"]

1. e4 {[%emt 0:00:03]} c6 {[%emt 0:00:10]} 2. d4 {[%emt 0:00:13]} d5 {[%emt 0:00:11]} 3. e5 {[%emt 0:00:10]} Bf5 {[%emt 0:00:17]} 4. c4 {[%emt 0:00:19]} e6 {[%emt 0:01:07]} 5. Nc3 {[%emt 0:00:07]} dxc4 {[%emt 0:01:49]} 6. Bxc4 {[%emt 0:00:16]} Nd7 {[%emt 0:00:33]} 7. Nf3 {[%emt 0:00:58]} h6 {[%emt 0:05:46]} 8. O-O {[%emt 0:03:58]} Ne7 {[%emt 0:02:35]} 9. Qe2 {[%emt 0:01:04]} Nb6 {[%emt 0:08:22]} 10. Bb3 {[%emt 0:02:20]} Bg6 {[%emt 0:07:06]} 11. Be3 {[%emt 0:17:07]} Nf5 {[%emt 0:04:45]} 12. Rad1 {[%emt 0:00:32]} Be7 {[%emt 0:01:24]} 13. h3 {[%emt 0:06:51]} a5 {[%emt 0:06:27]} 14. a3 {[%emt 0:01:48]} Qc7 {[%emt 0:05:27]} 15. Ne4 {[%emt 0:07:54]} Nxe3 {[%emt 0:04:00]} 16. Qxe3 {[%emt 0:00:12]} Rd8 {[%emt 0:00:18]} 17. Rfe1 {[%emt 0:18:44]} O-O {[%emt 0:04:04]} 18. Bc2 {[%emt 0:04:24]} Rd5 {[%emt 0:10:10]} 19. Rc1 {[%emt 0:04:09]} Rb5 {[%emt 0:09:00]} 20. Rb1 {[%emt 0:02:50]} Nd5 {[%emt 0:05:28]} 21. Qc1 {[%emt 0:02:32]} Rc8 {[%emt 0:03:02]} 22. Bd3 {[%emt 0:03:07]} Rb6 {[%emt 0:00:27]} 23. Qd2 {[%emt 0:01:51]} a4 {[%emt 0:03:14]} 24. Rbc1 {[%emt 0:01:12]} Rd8 {[%emt 0:02:30]} 25. Rc2 {[%emt 0:01:07]} Rc8 {[%emt 0:04:01]} 26. Rd1 {[%emt 0:02:22]} Rb3 {[%emt 0:00:28]} 27. Nc5 {[%emt 0:05:11]} Bxc5 {[%emt 0:01:39]} 28. Bxg6 {[%emt 0:00:04]} Bxa3 {[%emt 0:00:14]} 29. Be4 {[%emt 0:02:41]} Bb4 {[%emt 0:01:18]} 30. Qe2 {[%emt 0:01:23]} Be7 {[%emt 0:03:29]} 31. Nd2 {[%emt 0:01:39]} Rb4 {[%emt 0:00:59]} 32. Nc4 {[%emt 0:02:09]} b5 {[%emt 0:00:59]} 33. Ne3 {[%emt 0:00:48]} Nxe3 {[%emt 0:00:53]} 34. Qxe3 {[%emt 0:00:55]} Qb6 {[%emt 0:00:34]} 35. Rcd2 {[%emt 0:03:41]} Rb3 {[%emt 0:00:36]} 36. Qe2 {[%emt 0:00:22]} Rd8 {[%emt 0:01:25]} 37. Bb1 {[%emt 0:00:35]} g6 {[%emt 0:00:56]} 38. Ba2 {[%emt 0:01:00]} Rb4 {[%emt 0:00:04]} 39. Qe3 {[%emt 0:01:17]} Kg7 {[%emt 0:00:32]} 40. Qc3 {[%emt 0:00:14]} Rc8 {[%emt 0:02:31]} 41. g3 {[%emt 0:00:24]} a3 {[%emt 0:00:18]} 42. b3 {[%emt 0:00:40]} c5 {[%emt 0:00:26]} 43. d5 {[%emt 0:00:09]} exd5 {[%emt 0:00:17]} 44. Rxd5 {[%emt 0:00:06]} Qe6 {[%emt 0:00:14]} 45. Kg2 {[%emt 0:00:57]} Kh7 {[%emt 0:01:36]} 46. Qc1 {[%emt 0:01:50]} c4 {[%emt 0:00:35]} 47. bxc4 {[%emt 0:00:10]} Rb2 {[%emt 0:00:03]} 48. R5d2 {[%emt 0:01:21]} Qxe5 {[%emt 0:01:20]} 49. Re1 {[%emt 0:00:08]} Qf6 {[%emt 0:00:20]} 50. Rxb2 {[%emt 0:00:43]} axb2 {[%emt 0:00:04]} 51. Qe3 {[%emt 0:00:46]} Bc5 {[%emt 0:00:31]} 52. Qf3 {[%emt 0:00:05]} Qxf3+ {[%emt 0:00:29]} 53. Kxf3 {[%emt 0:00:02]} bxc4 {[%emt 0:00:07]} 54. Bb1 {[%emt 0:01:29]} c3 {[%emt 0:00:31]} 55. Re4 {[%emt 0:00:21]} Bxf2 {[%emt 0:00:21]} 56. Re2 {[%emt 0:00:37]} Be1 {[%emt 0:00:39]} 57. Re7 {[%emt 0:00:29]} c2 {[%emt 0:00:23]} 0-1

[Event "26th Hit Open-A 2022"]
[Site "Nova Gorica"]
[Date "2022.09.15"]
[Round "1.20"]
[White "Marchesich, Giovanni"]
[Black "Thavandiran, Shiyam"]
[Result "1/2-1/2"]
[ECO "C11"]
[WhiteElo "2189"]
[BlackElo "2363"]
[Annotator "ChessBase"]
[PlyCount "35"]
[EventDate "2022.09.16"]
[EventType "swiss"]
[EventCountry "SLO"]
[SourceTitle "playchess.com"]
[Source "ChessBase"]
[SourceQuality "1"]
[TimeControl "5400+30"]

1. e4 {[%emt 0:00:14]} e6 {[%emt 0:00:13]} 2. d4 {[%emt 0:00:24]} d5 {[%emt 0:00:08]} 3. Nc3 {[%emt 0:00:27]} Nf6 {[%emt 0:00:48]} 4. e5 {[%emt 0:00:27]} Nfd7 {[%emt 0:00:08]} 5. f4 {[%emt 0:00:15]} c5 {[%emt 0:00:07]} 6. Nf3 {[%emt 0:00:16]} Nc6 {[%emt 0:00:13]} 7. Be3 {[%emt 0:00:24]} a6 {[%emt 0:00:32]} 8. a3 {[%emt 0:01:05]} cxd4 {[%emt 0:02:46]} 9. Nxd4 {[%emt 0:00:14]} Bc5 {[%emt 0:00:18]} 10. Qd2 {[%emt 0:01:37]} O-O {[%emt 0:01:18]} 11. Be2 {[%emt 0:02:20]} Nxd4 {[%emt 0:42:56]} 12. Bxd4 {[%emt 0:00:12]} Bxd4 {[%emt 0:05:32]} 13. Qxd4 {[%emt 0:00:08]} f6 {[%emt 0:00:33]} 14. exf6 {[%emt 0:11:30]} Qxf6 {[%emt 0:00:24]} 15. Qxf6 {[%emt 0:01:16]} Nxf6 {[%emt 0:00:57]} 16. Bd3 {[%emt 0:17:30]} Bd7 {[%emt 0:07:07]} 17. O-O {[%emt 0:01:03]} Rac8 {[%emt 0:08:30]} 18. Rae1 {[%emt 0:04:39]} 1/2-1/2